fUSD/lending_fUSD_20250504
["ID","MTS","AMOUNT","RATE_DAILY","PERIOD"]
[359830393,1746361031848,-450.0,0.00019726,2]
[359830394,1746361031868,-250.0,0.00019726,2]
[359830395,1746361031889,-450.0,0.00019726,2]
[359830396,1746361031911,-450.0,0.00019726,2]
[359830397,1746361031932,-450.0,0.00019726,2]
[359830398,1746361031954,-450.0,0.00019726,2]
[359830399,1746361031975,-539.94977132,0.00019726,2]
[359830400,1746361031997,-450.0,0.00019726,2]
[359830401,1746361032018,-450.0,0.00019726,2]
[359830402,1746361032039,-450.0,0.00019726,2]
[359830403,1746361032060,-450.0,0.00019726,2]
[359830404,1746361032085,-450.0,0.00019726,2]
[359830405,1746361032106,-508.05,0.00019726,2]
[359830406,1746361032127,-450.0,0.00019726,2]
[359830407,1746361032148,-450.0,0.00019726,2]
[359830408,1746361032170,-450.0,0.00019726,2]
[359830409,1746361032192,-450.0,0.00019726,2]
[359830410,1746361032213,-450.0,0.00019726,2]
[359830411,1746361032235,-450.0,0.00019726,2]
[359830412,1746361032257,-543.73,0.00019726,2]
[359830413,1746361032278,-450.0,0.00019726,2]
[359830414,1746361032300,-450.0,0.00019726,2]
[359830415,1746361032321,-450.0,0.00019726,2]
[359830416,1746361032343,-450.0,0.00019726,2]
[359830417,1746361032364,-450.0,0.00019726,2]
[359830418,1746361032387,-450.0,0.00019726,2]
[359830419,1746361032409,-450.0,0.00019726,2]
[359830420,1746361032432,-450.0,0.00019726,2]
[359830421,1746361032454,-450.0,0.00019726,2]
[359830422,1746361032477,-450.0,0.00019726,2]
[359830423,1746361032499,-450.0,0.00019726,2]
[359830424,1746361032521,-450.0,0.00019726,2]
[359830425,1746361032543,-450.0,0.00019726,2]
[359830426,1746361032565,-348.15093681,0.00019726,2]
[359830427,1746361032587,-480.66355531,0.00019726,2]
[359830428,1746361032609,-554.16,0.00019726,2]
[359830429,1746361032632,-450.0,0.00019726,2]
[359830430,1746361032654,-450.0,0.00019726,2]
[359830431,1746361032676,-256.09,0.00019726,2]
[359830432,1746361032697,-450.0,0.00019726,2]
[359830433,1746361032718,-314.33299829,0.00019726,2]
[359830434,1746361032739,-450.0,0.00019726,2]
[359830435,1746361032760,-450.0,0.00019726,2]
[359830436,1746361032781,-450.0,0.00019726,2]
[359830437,1746361032803,-47342.55,0.00019726,2]
[359830438,1746361032825,-450.0,0.00019726,2]
[359830439,1746361032847,-450.0,0.00019726,2]
[359830440,1746361032868,-450.0,0.00019726,2]
[359830441,1746361032890,-450.0,0.00019726,2]
[359830442,1746361032912,-424.79,0.00019726,2]
[359830443,1746361032934,-2179.83,0.00019726,2]
[359830444,1746361032956,-450.0,0.00019726,2]
[359830445,1746361032978,-450.0,0.00019726,2]
[359830446,1746361033000,-450.0,0.00019726,2]
[359830447,1746361033023,-450.0,0.00019726,2]
[359830448,1746361033045,-215.72966804,0.00019726,2]
[359830449,1746361033067,-450.0,0.00019726,2]
[359830450,1746361033092,-2298.39,0.00019726,2]
[359830451,1746361033115,-450.0,0.00019726,2]
[359830452,1746361033138,-450.0,0.00019726,2]
[359830453,1746361033160,-200.0,0.00019732,2]
[359830454,1746361033183,-1219.58222125,0.00019748,2]
[359830455,1746361033204,-307.28042963,0.00019752,2]
[359830456,1746361033226,-500.0,0.00019752,2]
[359830457,1746361033249,-500.0,0.00019752,2]
[359830458,1746361033270,-500.0,0.00019752,2]
[359830459,1746361033292,-450.0,0.00019753,2]
[359830460,1746361033314,-450.0,0.00019753,2]
[359830461,1746361033336,-450.0,0.00019753,2]
[359830462,1746361033357,-450.0,0.00019753,2]
[359830463,1746361033379,-522.83,0.00019753,2]
[359830464,1746361033401,-554.21,0.00019753,2]
[359830465,1746361033423,-450.0,0.00019753,2]
[359830466,1746361033444,-530.42,0.00019753,2]
[359830467,1746361033465,-450.0,0.00019753,2]
[359830468,1746361033486,-450.0,0.00019753,2]
[359830469,1746361033507,-439.29271493,0.00019753,2]
[359830470,1746361033529,-324.1513548,0.00019753,2]
[359830471,1746361033551,-450.0,0.00019753,2]
[359830472,1746361033572,-562.08,0.00019753,2]
[359830473,1746361033593,-450.0,0.00019753,2]
[359830474,1746361033615,-570.85,0.00019753,2]
[359830475,1746361033638,-494.85,0.00019753,2]
[359830476,1746361033660,-196.7,0.00019753,2]
[359830477,1746361033681,-495.36,0.00019753,2]
[359830478,1746361033703,-580.79,0.00019753,2]
[359830479,1746361033723,-591.58,0.00019753,2]
[359830480,1746361033745,-458.2,0.00019753,2]
[359830481,1746361033766,-450.0,0.00019753,2]
[359830482,1746361033788,-450.0,0.00019753,2]
[359830483,1746361033809,-196.1335328,0.00019753,2]
[359830484,1746361033990,-450.0,0.00019753,2]
[359830485,1746361034016,-185.83,0.00019753,2]
[359830486,1746361034039,-671.71,0.00019753,2]
[359830487,1746361034061,-567.73,0.00019753,2]
[359830488,1746361034088,-450.0,0.00019753,2]
[359830489,1746361034110,-450.0,0.00019753,2]
[359830490,1746361034132,-450.0,0.00019753,2]
[359830491,1746361034154,-336.51,0.00019753,2]
[359830492,1746361034175,-450.0,0.00019753,2]
[359830493,1746361034196,-450.0,0.00019753,2]
[359830494,1746361034218,-450.0,0.00019753,2]
[359830495,1746361034240,-462.65,0.00019753,2]
[359830496,1746361034262,-450.0,0.00019753,2]
[359830497,1746361034285,-465.24,0.00019753,2]
[359830498,1746361034307,-450.0,0.00019753,2]
[359830499,1746361034329,-450.0,0.00019753,2]
[359830500,1746361034352,-453.06,0.00019753,2]
[359830501,1746361034376,-450.0,0.00019753,2]
[359830502,1746361034399,-450.0,0.00019753,2]
[359830503,1746361034421,-450.0,0.00019753,2]
[359830504,1746361034444,-450.0,0.00019753,2]
[359830505,1746361034468,-775.82,0.00019753,2]
[359830506,1746361034490,-450.0,0.00019753,2]
[359830507,1746361034511,-574.38,0.00019753,2]
[359830508,1746361034534,-450.0,0.00019753,2]
[359830509,1746361034556,-784.28,0.00019753,2]
[359830510,1746361034580,-450.0,0.00019753,2]
[359830511,1746361034601,-450.0,0.00019753,2]
[359830512,1746361034624,-450.0,0.00019753,2]
[359830513,1746361034646,-450.0,0.00019753,2]
[359830514,1746361034668,-450.0,0.00019753,2]
[359830515,1746361034692,-450.0,0.00019753,2]
[359830516,1746361034715,-1013.07,0.00019753,2]
[359830517,1746361034738,-450.0,0.00019753,2]
[359830518,1746361034761,-1671.15,0.00019753,2]
[359830519,1746361034783,-450.0,0.00019753,2]
[359830520,1746361034805,-872.42,0.00019753,2]
[359830521,1746361034828,-450.0,0.00019753,2]
[359830522,1746361034850,-2222.86,0.00019753,2]
[359830523,1746361034873,-626.22,0.00019753,2]
[359830524,1746361034897,-450.0,0.00019753,2]
[359830525,1746361034921,-450.0,0.00019753,2]
[359830526,1746361034944,-924.21,0.00019753,2]
[359830527,1746361034969,-450.0,0.00019753,2]
[359830528,1746361034993,-450.0,0.00019753,2]
[359830529,1746361035015,-450.0,0.00019753,2]
[359830530,1746361035038,-450.0,0.00019753,2]
[359830531,1746361035061,-450.0,0.00019753,2]
[359830532,1746361035088,-1739.8,0.00019753,2]
[359830533,1746361035110,-450.0,0.00019753,2]
[359830534,1746361035133,-437.64,0.00019753,2]
[359830535,1746361035157,-625.62,0.00019753,2]
[359830536,1746361035179,-1163.64,0.00019753,2]
[359830537,1746361035201,-1006.47,0.00019753,2]
[359830538,1746361035227,-450.0,0.00019753,2]
[359830539,1746361035249,-450.0,0.00019753,2]
[359830540,1746361035271,-498.18,0.00019753,2]
[359830541,1746361035292,-1171.82,0.00019753,2]
[359830542,1746361035314,-450.0,0.00019753,2]
[359830543,1746361035337,-450.0,0.00019753,2]
[359830544,1746361035359,-21452.9,0.00019753,2]
[359830545,1746361035382,-483.49,0.00019753,2]
[359830546,1746361035403,-450.0,0.00019753,2]
[359830547,1746361035425,-202.32504858,0.00019753,2]
[359830548,1746361035447,-450.0,0.00019753,2]
[359830549,1746361035467,-450.0,0.00019753,2]
[359830550,1746361035488,-1175.08,0.00019753,2]
[359830551,1746361035510,-450.0,0.00019753,2]
[359830552,1746361035531,-597.15,0.00019753,2]
[359830553,1746361035552,-450.0,0.00019753,2]
[359830554,1746361035574,-156.69,0.00019753,2]
[359830555,1746361035595,-7121.29,0.00019753,2]
[359830556,1746361035616,-450.0,0.00019753,2]
[359830557,1746361035639,-450.0,0.00019753,2]
[359830558,1746361035661,-450.0,0.00019753,2]
[359830559,1746361035683,-468.43,0.00019753,2]
[359830560,1746361035704,-293.67,0.00019753,2]
[359830561,1746361035727,-461.92,0.00019753,2]
[359830562,1746361035748,-451.5,0.00019753,2]
[359830563,1746361035770,-297.19,0.00019753,2]
[359830564,1746361035792,-450.0,0.00019753,2]
[359830565,1746361035815,-616.41,0.00019753,2]
[359830566,1746361035839,-450.0,0.00019753,2]
[359830567,1746361035862,-3384.1,0.00019753,2]
[359830568,1746361035887,-450.0,0.00019753,2]
[359830569,1746361035911,-522.11,0.00019753,2]
[359830570,1746361035935,-450.0,0.00019753,2]
[359830571,1746361035956,-408.31623474,0.00019753,2]
[359830572,1746361035977,-450.0,0.00019753,2]
[359830573,1746361035999,-450.0,0.00019753,2]
[359830574,1746361036021,-450.0,0.00019753,2]
[359830575,1746361036045,-450.0,0.00019753,2]
[359830576,1746361036069,-450.0,0.00019753,2]
[359830577,1746361036094,-188.7153091,0.00019753,2]
[359830578,1746361036115,-450.0,0.00019753,2]
[359830579,1746361036137,-450.0,0.00019753,2]
[359830580,1746361036159,-450.0,0.00019753,2]
[359830581,1746361036180,-450.0,0.00019753,2]
[359830582,1746361036202,-450.0,0.00019753,2]
[359830583,1746361036223,-324.09,0.00019753,2]
[359830584,1746361036244,-156.74,0.00019753,2]
[359830585,1746361036266,-237.11,0.00019753,2]
[359830586,1746361036287,-208.14309518,0.00019753,2]
[359830587,1746361036308,-181.89,0.00019753,2]
[359830588,1746361036330,-450.0,0.00019753,2]
[359830589,1746361036352,-450.0,0.00019753,2]
[359830590,1746361036376,-218.65,0.00019753,2]
[359830591,1746361036398,-450.0,0.00019753,2]
[359830592,1746361036420,-450.0,0.00019753,2]
[359830593,1746361036441,-47342.55,0.00019753,2]
[359830594,1746361036463,-450.0,0.00019753,2]
[359830595,1746361036483,-450.0,0.00019753,2]
[359830596,1746361036504,-2179.83,0.00019753,2]
[359830597,1746361036527,-450.0,0.00019753,2]
[359830598,1746361036549,-450.0,0.00019753,2]
[359830599,1746361036573,-450.0,0.00019753,2]
[359830600,1746361036595,-450.0,0.00019753,2]
[359830601,1746361036617,-515.10449802,0.00019753,2]
[359830602,1746361036641,-2298.39,0.00019753,2]
[359830603,1746361036664,-450.0,0.00019753,2]
[359830604,1746361036684,-160.17249924,0.00019773,2]
[359830605,1746361036706,-500.0,0.00019773,2]
[359830606,1746361036728,-500.0,0.00019773,2]
[359830607,1746361036749,-500.0,0.00019773,2]
[359830608,1746361036770,-500.0,0.00019773,2]
[359830609,1746361036791,-500.0,0.00019773,2]
[359830610,1746361036811,-500.0,0.00019773,2]
[359830611,1746361036833,-500.0,0.00019773,2]
[359830612,1746361036855,-500.0,0.00019773,2]
[359830613,1746361036876,-500.0,0.00019773,2]
[359830614,1746361036898,-500.0,0.00019778,2]
[359830615,1746361036921,-1219.58222125,0.00019778,2]
[359830616,1746361036943,-228.28,0.0001978,2]
[359830617,1746361036964,-450.0,0.0001978,2]
[359830618,1746361036985,-450.0,0.0001978,2]
[359830619,1746361037006,-562.08,0.0001978,2]
[359830620,1746361037027,-151.93,0.0001978,2]
[359830621,1746361037049,-450.0,0.0001978,2]
[359830622,1746361037073,-450.0,0.0001978,2]
[359830623,1746361037095,-450.0,0.0001978,2]
[359830624,1746361037115,-671.71,0.0001978,2]
[359830625,1746361037138,-450.0,0.0001978,2]
[359830626,1746361037159,-450.0,0.0001978,2]
[359830627,1746361037180,-450.0,0.0001978,2]
[359830628,1746361037201,-343.01365031,0.0001978,2]
[359830629,1746361037223,-450.0,0.0001978,2]
[359830630,1746361037245,-450.0,0.0001978,2]
[359830631,1746361037266,-309.14,0.0001978,2]
[359830632,1746361037288,-453.06,0.0001978,2]
[359830633,1746361037310,-450.0,0.0001978,2]
[359830634,1746361037481,-450.0,0.0001978,2]
[359830635,1746361037504,-450.0,0.0001978,2]
[359830636,1746361037527,-775.82,0.0001978,2]
[359830637,1746361037547,-450.0,0.0001978,2]
[359830638,1746361037569,-450.0,0.0001978,2]
[359830639,1746361037590,-784.28,0.0001978,2]
[359830640,1746361037611,-450.0,0.0001978,2]
[359830641,1746361037634,-186.15,0.0001978,2]
[359830642,1746361037655,-450.0,0.0001978,2]
[359830643,1746361037675,-450.0,0.0001978,2]
[359830644,1746361037696,-450.0,0.0001978,2]
[359830645,1746361037717,-450.0,0.0001978,2]
[359830646,1746361037740,-1013.07,0.0001978,2]
[359830647,1746361037762,-450.0,0.0001978,2]
[359830648,1746361037784,-1671.15,0.0001978,2]
[359830649,1746361037805,-527.37,0.0001978,2]
[359830650,1746361037826,-872.42,0.0001978,2]
[359830651,1746361037848,-450.0,0.0001978,2]
[359830652,1746361037873,-2222.86,0.0001978,2]
[359830653,1746361037896,-626.22,0.0001978,2]
[359830654,1746361037918,-450.0,0.0001978,2]
[359830655,1746361037943,-274.31456417,0.0001978,2]
[359830656,1746361037964,-924.21,0.0001978,2]
[359830657,1746361037986,-450.0,0.0001978,2]
[359830658,1746361038008,-450.0,0.0001978,2]
[359830659,1746361038030,-450.0,0.0001978,2]
[359830660,1746361038052,-450.0,0.0001978,2]
[359830661,1746361038077,-1739.8,0.0001978,2]
[359830662,1746361038098,-450.0,0.0001978,2]
[359830663,1746361038120,-625.62,0.0001978,2]
[359830664,1746361038143,-1163.64,0.0001978,2]
[359830665,1746361038167,-1006.47,0.0001978,2]
[359830666,1746361038190,-450.0,0.0001978,2]
[359830667,1746361038212,-450.0,0.0001978,2]
[359830668,1746361038235,-1171.82,0.0001978,2]
[359830669,1746361038258,-450.0,0.0001978,2]
[359830670,1746361038280,-450.0,0.0001978,2]
[359830671,1746361038302,-21452.9,0.0001978,2]
[359830672,1746361038324,-483.49,0.0001978,2]
[359830673,1746361038346,-176.04,0.0001978,2]
[359830674,1746361038368,-450.0,0.0001978,2]
[359830675,1746361038392,-450.0,0.0001978,2]
[359830676,1746361038413,-1175.08,0.0001978,2]
[359830677,1746361038435,-450.0,0.0001978,2]
[359830678,1746361038456,-304.65,0.0001978,2]
[359830679,1746361038477,-7121.29,0.0001978,2]
[359830680,1746361038500,-450.0,0.0001978,2]
[359830681,1746361038521,-450.0,0.0001978,2]
[359830682,1746361038543,-461.92,0.0001978,2]
[359830683,1746361038565,-451.5,0.0001978,2]
[359830684,1746361038589,-616.41,0.0001978,2]
[359830685,1746361038611,-450.0,0.0001978,2]
[359830686,1746361038636,-3384.1,0.0001978,2]
[359830687,1746361038659,-450.0,0.0001978,2]
[359830688,1746361038680,-522.11,0.0001978,2]
[359830689,1746361038702,-571.25,0.0001978,2]
[359830690,1746361038724,-450.0,0.0001978,2]
[359830691,1746361038746,-503.9416051,0.0001978,2]
[359830692,1746361038768,-450.0,0.0001978,2]
[359830693,1746361038789,-450.0,0.0001978,2]
[359830694,1746361038812,-450.0,0.0001978,2]
[359830695,1746361038835,-178.05,0.0001978,2]
[359830696,1746361038856,-450.0,0.0001978,2]
[359830697,1746361038880,-557.08,0.0001978,2]
[359830698,1746361038901,-450.0,0.0001978,2]
[359830699,1746361038923,-450.0,0.0001978,2]
[359830700,1746361038945,-231.43,0.0001978,2]
[359830701,1746361038967,-47342.55,0.0001978,2]
[359830702,1746361038988,-450.0,0.0001978,2]
[359830703,1746361039009,-574.29,0.0001978,2]
[359830704,1746361039030,-2179.83,0.0001978,2]
[359830705,1746361039052,-331.74,0.0001978,2]
[359830706,1746361039076,-450.0,0.0001978,2]
[359830707,1746361039099,-450.0,0.0001978,2]
[359830708,1746361039120,-450.0,0.0001978,2]
[359830709,1746361039145,-2298.39,0.0001978,2]
[359830710,1746361039167,-450.0,0.0001978,2]
[359830711,1746361039188,-161.33345751,0.0001979,2]
[359830712,1746361039210,-846.8324595,0.00019799,2]
[359830713,1746361039232,-500.0,0.00019799,2]
[359830714,1746361039254,-500.0,0.00019807,2]
[359830715,1746361039277,-484.05545419,0.00019808,2]
[359830716,1746361039299,-450.0,0.00019808,2]
[359830717,1746361039320,-562.08,0.00019808,2]
[359830718,1746361039342,-450.0,0.00019808,2]
[359830719,1746361039364,-450.0,0.00019808,2]
[359830720,1746361039386,-450.0,0.00019808,2]
[359830721,1746361039407,-671.71,0.00019808,2]
[359830722,1746361039428,-450.0,0.00019808,2]
[359830723,1746361039450,-450.0,0.00019808,2]
[359830724,1746361039471,-450.0,0.00019808,2]
[359830725,1746361039492,-450.0,0.00019808,2]
[359830726,1746361039513,-450.0,0.00019808,2]
[359830727,1746361039534,-453.06,0.00019808,2]
[359830728,1746361039556,-450.0,0.00019808,2]
[359830729,1746361039577,-338.01,0.00019808,2]
[359830730,1746361039599,-450.0,0.00019808,2]
[359830731,1746361039622,-775.82,0.00019808,2]
[359830732,1746361039643,-450.0,0.00019808,2]
[359830733,1746361039664,-450.0,0.00019808,2]
[359830734,1746361039685,-784.28,0.00019808,2]
[359830735,1746361039706,-450.0,0.00019808,2]
[359830736,1746361039728,-450.0,0.00019808,2]
[359830737,1746361039750,-450.0,0.00019808,2]
[359830738,1746361039772,-450.0,0.00019808,2]
[359830739,1746361039794,-450.0,0.00019808,2]
[359830740,1746361039815,-1013.07,0.00019808,2]
[359830741,1746361039839,-1671.15,0.00019808,2]
[359830742,1746361039860,-872.42,0.00019808,2]
[359830743,1746361039883,-2222.86,0.00019808,2]
[359830744,1746361039904,-626.22,0.00019808,2]
[359830745,1746361039926,-450.0,0.00019808,2]
[359830746,1746361039948,-924.21,0.00019808,2]
[359830747,1746361039970,-450.0,0.00019808,2]
[359830748,1746361039992,-450.0,0.00019808,2]
[359830749,1746361040014,-450.0,0.00019808,2]
[359830750,1746361040039,-1739.8,0.00019808,2]
[359830751,1746361040060,-236.41,0.00019808,2]
[359830752,1746361040085,-625.62,0.00019808,2]
[359830753,1746361040107,-1163.64,0.00019808,2]
[359830754,1746361040129,-1006.47,0.00019808,2]
[359830755,1746361040151,-450.0,0.00019808,2]
[359830756,1746361040173,-450.0,0.00019808,2]
[359830757,1746361040195,-1171.82,0.00019808,2]
[359830758,1746361040220,-285.15,0.00019808,2]
[359830759,1746361040242,-450.0,0.00019808,2]
[359830760,1746361040267,-21452.9,0.00019808,2]
[359830761,1746361040290,-483.49,0.00019808,2]
[359830762,1746361040312,-450.0,0.00019808,2]
[359830763,1746361040335,-450.0,0.00019808,2]
[359830764,1746361040356,-1175.08,0.00019808,2]
[359830765,1746361040379,-316.81,0.00019808,2]
[359830766,1746361040401,-7121.29,0.00019808,2]
[359830767,1746361040424,-450.0,0.00019808,2]
[359830768,1746361040446,-450.0,0.00019808,2]
[359830769,1746361040468,-461.92,0.00019808,2]
[359830770,1746361040489,-451.5,0.00019808,2]
[359830771,1746361040511,-616.41,0.00019808,2]
[359830772,1746361040533,-450.0,0.00019808,2]
[359830773,1746361040556,-3384.1,0.00019808,2]
[359830774,1746361040578,-450.0,0.00019808,2]
[359830775,1746361040601,-522.11,0.00019808,2]
[359830776,1746361040625,-301.96,0.00019808,2]
[359830777,1746361040648,-556.05,0.00019808,2]
[359830778,1746361040671,-450.0,0.00019808,2]
[359830779,1746361040694,-331.38,0.00019808,2]
[359830780,1746361040715,-450.0,0.00019808,2]
[359830781,1746361040736,-450.0,0.00019808,2]
[359830782,1746361040758,-255.81,0.00019808,2]
[359830783,1746361040931,-47342.55,0.00019808,2]
[359830784,1746361040954,-450.0,0.00019808,2]
[359830785,1746361040975,-2179.83,0.00019808,2]
[359830786,1746361040996,-473.01417946,0.00019808,2]
[359830787,1746361041019,-450.0,0.00019808,2]
[359830788,1746361041042,-450.0,0.00019808,2]
[359830789,1746361041065,-2298.39,0.00019808,2]
[359830790,1746361041091,-1219.58222125,0.00019809,2]
[359830791,1746361041112,-2000.0,0.00019831,2]
[359830792,1746361041135,-500.0,0.00019834,2]
[359830793,1746361041158,-450.0,0.00019835,2]
[359830794,1746361041179,-562.08,0.00019835,2]
[359830795,1746361041201,-450.0,0.00019835,2]
[359830796,1746361041223,-450.0,0.00019835,2]
[359830797,1746361041244,-450.0,0.00019835,2]
[359830798,1746361041266,-671.71,0.00019835,2]
[359830799,1746361041287,-450.0,0.00019835,2]
[359830800,1746361041309,-450.0,0.00019835,2]
[359830801,1746361041331,-450.0,0.00019835,2]
[359830802,1746361041351,-450.0,0.00019835,2]
[359830803,1746361041373,-450.0,0.00019835,2]
[359830804,1746361041395,-453.06,0.00019835,2]
[359830805,1746361041416,-265.23,0.00019835,2]
[359830806,1746361041439,-775.82,0.00019835,2]
[359830807,1746361041460,-450.0,0.00019835,2]
[359830808,1746361041482,-313.53,0.00019835,2]
[359830809,1746361041503,-784.28,0.00019835,2]
[359830810,1746361041524,-450.0,0.00019835,2]
[359830811,1746361041546,-450.0,0.00019835,2]
[359830812,1746361041568,-450.0,0.00019835,2]
[359830813,1746361041591,-450.0,0.00019835,2]
[359830814,1746361041613,-291.66,0.00019835,2]
[359830815,1746361041636,-1013.07,0.00019835,2]
[359830816,1746361041658,-1671.15,0.00019835,2]
[359830817,1746361041679,-872.42,0.00019835,2]
[359830818,1746361041701,-2222.86,0.00019835,2]
[359830819,1746361041723,-626.22,0.00019835,2]
[359830820,1746361041746,-450.0,0.00019835,2]
[359830821,1746361041767,-924.21,0.00019835,2]
[359830822,1746361041789,-450.0,0.00019835,2]
[359830823,1746361041813,-267.02,0.00019835,2]
[359830824,1746361041835,-450.0,0.00019835,2]
[359830825,1746361041857,-1739.8,0.00019835,2]
[359830826,1746361041880,-625.62,0.00019835,2]
[359830827,1746361041902,-1163.64,0.00019835,2]
[359830828,1746361041923,-1006.47,0.00019835,2]
[359830829,1746361041944,-450.0,0.00019835,2]
[359830830,1746361041967,-450.0,0.00019835,2]
[359830831,1746361041988,-1171.82,0.00019835,2]
[359830832,1746361042010,-450.0,0.00019835,2]
[359830833,1746361042033,-21452.9,0.00019835,2]
[359830834,1746361042056,-483.49,0.00019835,2]
[359830835,1746361042082,-450.0,0.00019835,2]
[359830836,1746361042104,-1175.08,0.00019835,2]
[359830837,1746361042126,-7121.29,0.00019835,2]
[359830838,1746361042149,-450.0,0.00019835,2]
[359830839,1746361042172,-450.0,0.00019835,2]
[359830840,1746361042195,-461.92,0.00019835,2]
[359830841,1746361042217,-451.5,0.00019835,2]
[359830842,1746361042240,-616.41,0.00019835,2]
[359830843,1746361042263,-450.0,0.00019835,2]
[359830844,1746361042299,-3384.1,0.00019835,2]
[359830845,1746361042324,-316.35,0.00019835,2]
[359830846,1746361042347,-522.11,0.00019835,2]
[359830847,1746361042370,-450.0,0.00019835,2]
[359830848,1746361042394,-167.27,0.00019835,2]
[359830849,1746361042416,-450.0,0.00019835,2]
[359830850,1746361042438,-47342.55,0.00019835,2]
[359830851,1746361042461,-450.0,0.00019835,2]
[359830852,1746361042484,-2179.83,0.00019835,2]
[359830853,1746361042507,-450.0,0.00019835,2]
[359830854,1746361042531,-450.0,0.00019835,2]
[359830855,1746361042555,-2298.39,0.00019835,2]
[359830856,1746361042579,-1219.58222125,0.00019839,2]
[359830857,1746361042601,-479.07482507,0.00019863,2]
[359830858,1746361042623,-562.08,0.00019863,2]
[359830859,1746361042645,-232.73418406,0.00019863,2]
[359830860,1746361042667,-450.0,0.00019863,2]
[359830861,1746361042689,-450.0,0.00019863,2]
[359830862,1746361042712,-671.71,0.00019863,2]
[359830863,1746361042736,-450.0,0.00019863,2]
[359830864,1746361042759,-450.0,0.00019863,2]
[359830865,1746361042785,-450.0,0.00019863,2]
[359830866,1746361042808,-450.0,0.00019863,2]
[359830867,1746361042831,-450.0,0.00019863,2]
[359830868,1746361042854,-453.06,0.00019863,2]
[359830869,1746361042879,-775.82,0.00019863,2]
[359830870,1746361042902,-450.0,0.00019863,2]
[359830871,1746361042926,-784.28,0.00019863,2]
[359830872,1746361042949,-278.36600596,0.00019863,2]
[359830873,1746361042972,-450.0,0.00019863,2]
[359830874,1746361042995,-450.0,0.00019863,2]
[359830875,1746361043017,-450.0,0.00019863,2]
[359830876,1746361043041,-1013.07,0.00019863,2]
[359830877,1746361043063,-1671.15,0.00019863,2]
[359830878,1746361043088,-872.42,0.00019863,2]
[359830879,1746361043116,-2222.86,0.00019863,2]
[359830880,1746361043139,-626.22,0.00019863,2]
[359830881,1746361043162,-450.0,0.00019863,2]
[359830882,1746361043185,-924.21,0.00019863,2]
[359830883,1746361043207,-450.0,0.00019863,2]
[359830884,1746361043229,-450.0,0.00019863,2]
[359830885,1746361043252,-1739.8,0.00019863,2]
[359830886,1746361043275,-625.62,0.00019863,2]
[359830887,1746361043297,-1163.64,0.00019863,2]
[359830888,1746361043320,-1006.47,0.00019863,2]
[359830889,1746361043344,-450.0,0.00019863,2]
[359830890,1746361043366,-450.0,0.00019863,2]
[359830891,1746361043389,-1171.82,0.00019863,2]
[359830892,1746361043415,-450.0,0.00019863,2]